bitfinex/quotes_SOLUSD_20250829
["timestamp","ask_amount","ask_price","bid_price","bid_amount"]
[1756491114304,40.7,202.94,202.91,12.16363226]
[1756491114519,40.7,202.94,202.92,4.92805046]
[1756491114829,40.7,202.94,202.91,12.16363226]
[1756491115029,40.7,202.94,202.91,11.44363226]
[1756491115212,40.7,202.94,202.9,16.37195849]
[1756491115417,40.7,202.94,202.9,17.09195849]
[1756491115643,40.7,202.94,202.91,12.16363226]
[1756491116914,40.7,202.94,202.9,4.92832623]
[1756491116915,40.7,202.94,202.9,11.44363226]
[1756491117114,40.7,202.94,202.9,0.72]
[1756491117317,40.7,202.94,202.9,11.44363226]
[1756491117522,40.7,202.94,202.91,12.16363226]
[1756491117912,40.7,202.94,202.89,4.92858479]
[1756491118114,52.14363226,202.94,202.88,11.44363226]
[1756491118932,52.14363226,202.94,202.89,4.92877914]
[1756491119131,52.85363226,202.94,202.89,4.92877914]
[1756491119633,12.15363226,202.93,202.88,11.44363226]
[1756491119833,40.7,202.92,202.89,11.44363226]
[1756491120413,0.06,203.02,202.91,11.44363226]
[1756491120609,0.06,203.02,203.01,11.44363226]
[1756491120835,0.06,203.02,203.01,12.10363226]
[1756491121134,0.06,203.02,203.01,17.02949798]
[1756491121956,0.06,203.02,203.01,5.58586572]
[1756491122246,0.06,203.02,203.01,17.02949798]
[1756491122724,0.06,203.02,202.96,5.58707922]
[1756491122925,0.06,203.02,202.98,11.44363226]
[1756491123335,0.06,203.02,202.99,11.44363226]
[1756491123530,0.06,203.02,202.99,0.66]
[1756491123756,0.06,203.02,203.01,11.44363226]
[1756491124133,0.06,203.02,203.01,12.10363226]
[1756491125034,0.06,203.02,203.01,16.36949798]
[1756491125235,0.06,203.02,203.01,17.02949798]
[1756491125553,0.06,203.02,202.99,11.44363226]
[1756491126528,0.06,203.02,202.98,4.92652042]
[1756491126529,0.06,203.02,203.01,11.44363226]
[1756491127127,0.72,203.02,202.98,16.37015268]
[1756491127535,0.06,203.02,203.0,11.44363226]
[1756491127749,0.06,203.02,202.99,11.44363226]
[1756491128141,0.06,203.02,202.92,0.80216157]
[1756491128142,11.44363226,203.0,202.92,0.80216157]
[1756491128336,11.44363226,202.98,202.93,11.44363226]
[1756491128544,12.10363226,202.98,202.94,0.03]
[1756491128736,40.66,203.0,202.94,0.03]
[1756491128953,0.66,202.98,202.94,0.03]
[1756491129338,40.66,203.0,202.97,11.44363226]
[1756491130052,12.16363226,203.02,202.99,11.44363226]
[1756491130053,0.06,203.02,202.99,11.44363226]
[1756491130225,0.06,203.02,202.98,0.66]
[1756491130226,0.06,203.02,203.01,11.44363226]
[1756491131150,0.06,203.02,203.01,12.10363226]
[1756491131461,0.06,203.02,203.01,30.76725356]
[1756491131658,0.06,203.05,203.02,13.73775558]
[1756491131848,0.06,203.05,203.04,11.44363226]
[1756491132338,0.06,203.05,203.04,12.10363226]
[1756491133627,0.06,203.05,203.04,0.66]
[1756491133828,0.06,203.05,203.04,12.10363226]
[1756491134637,0.06,203.05,203.04,11.44363226]
[1756491135060,0.06,203.05,203.03,11.44363226]
[1756491135762,0.06,203.05,203.03,16.36878569]
[1756491135965,0.06,203.05,203.04,11.44363226]
[1756491136278,0.06,203.05,203.04,12.10363226]
[1756491137266,0.06,203.05,203.03,4.92515343]
[1756491137556,0.06,203.05,203.04,16.36877016]
[1756491137962,0.06,203.05,203.04,17.02877016]
[1756491138335,0.06,203.05,203.04,16.36877016]
[1756491138653,0.06,203.05,203.04,30.76652574]
[1756491138842,1e-08,203.05,203.04,42.70267179]
[1756491140252,1e-08,203.07,203.05,13.73775558]
[1756491140448,1e-08,203.07,203.06,25.67385312]
[1756491140660,1e-08,203.07,203.06,105.93385312]
[1756491140859,0.06,203.16,203.13,26.0]
[1756491141040,0.06,203.16,203.13,37.44363226]
[1756491142171,0.06,203.16,203.13,16.366588]
[1756491142854,0.72,203.14,203.13,4.92295574]
[1756491143055,0.06,203.14,203.13,16.366588]
[1756491143451,0.72,203.14,203.07,12.45304051]
[1756491143673,0.72,203.14,203.1,11.44363226]
[1756491143843,0.72,203.14,203.11,11.44363226]
[1756491144350,0.06,203.14,203.13,11.44363226]
[1756491146337,0.72,203.14,203.09,4.92392535]
[1756491146537,0.06,203.14,203.09,16.36755761]
[1756491146762,0.06,203.14,203.11,11.44363226]
[1756491146946,0.06,203.14,203.1,11.44363226]
[1756491146947,0.66,203.13,203.1,11.44363226]
[1756491147146,0.06,203.14,203.1,11.44363226]
[1756491147374,0.72,203.14,203.1,11.44363226]
[1756491147559,0.72,203.14,203.11,11.44363226]
[1756491147946,0.06,203.14,203.13,11.44363226]
[1756491148270,0.72,203.14,203.1,16.36731036]
[1756491148449,0.72,203.14,203.11,11.44363226]
[1756491148648,0.06,203.14,203.12,11.44363226]
[1756491149846,0.06,203.14,203.11,11.44363226]
[1756491150050,0.06,203.14,203.12,4.9231981]
[1756491150466,0.06,203.14,203.12,16.36683036]
[1756491150654,0.06,203.14,203.12,4.9231981]
[1756491151251,0.06,203.14,203.11,16.36705048]
[1756491151751,0.06,203.14,203.08,0.66]
[1756491151955,11.44363226,203.12,203.06,4.92465281]
[1756491152163,0.72,203.14,203.09,11.44363226]
[1756491152368,12.16363226,203.14,203.09,11.44363226]
[1756491152550,0.66,203.13,203.09,11.44363226]
[1756491152887,0.66,203.12,203.09,11.44363226]
[1756491153265,0.66,203.12,203.06,4.92465281]
[1756491153662,12.10363226,203.11,203.06,11.44363226]
[1756491153962,16.36760233,203.09,203.03,11.44363226]
[1756491154143,0.66,203.1,203.04,11.44363226]
[1756491154347,40.58,203.12,203.09,11.44363226]
[1756491154569,12.10363226,203.11,203.03,4.92533433]
[1756491154873,12.10363226,203.1,203.03,4.92533433]
[1756491155062,0.66,203.09,203.05,11.44363226]
[1756491156263,0.66,203.09,203.05,16.36837002]
[1756491156466,52.68363226,203.12,203.07,11.44363226]
[1756491156756,0.66,203.11,203.05,4.92473776]
[1756491157074,0.66,203.1,203.05,16.36837002]
[1756491157271,0.66,203.09,203.06,11.44363226]
[1756491157476,12.10363226,203.11,203.06,11.44363226]
[1756491157689,0.66,203.1,203.06,11.44363226]
[1756491157874,0.66,203.09,203.06,11.44363226]
[1756491158181,11.44363226,203.07,203.02,0.03]
[1756491158383,11.44363226,203.04,203.02,0.03]
[1756491158876,0.66,203.03,203.02,0.03]
[1756491159652,12.10363226,203.07,203.02,0.03]
[1756491160155,0.66,203.06,203.02,0.03]
[1756491160371,12.10363226,203.06,203.02,0.03]
[1756491160681,0.66,203.05,203.02,0.03]
[1756491161061,11.44363226,203.06,203.02,0.03]
[1756491161254,12.10363226,203.07,203.02,11.47363226]
[1756491161460,52.68363226,203.1,203.05,11.44363226]
[1756491161765,12.10363226,203.09,203.04,11.44363226]
[1756491161961,0.66,203.08,203.04,11.44363226]
[1756491162259,0.66,203.07,203.03,11.44363226]
[1756491162449,26.0,203.13,203.05,11.44363226]
[1756491162656,11.44363226,203.11,203.05,11.44363226]
[1756491163478,11.44363226,203.11,203.04,17.94798265]
[1756491163658,12.10363226,203.11,203.05,11.44363226]
[1756491163860,11.44363226,203.09,203.04,16.36877016]
[1756491164168,11.44363226,203.06,203.03,4.92536365]
[1756491164489,11.44363226,203.06,203.02,0.03]
[1756491164867,0.66,203.06,203.02,11.47363226]
[1756491165558,0.66,203.06,203.03,4.92538048]
[1756491166457,11.44363226,203.1,203.05,11.44363226]
[1756491166776,0.66,203.1,203.06,11.44363226]
[1756491166981,0.66,203.1,203.05,11.44363226]
[1756491167156,11.44363226,203.1,203.05,11.44363226]
[1756491167356,11.44363226,203.1,202.97,0.03]
[1756491167357,26.0,203.03,202.97,0.03]
[1756491167554,16.36974063,203.0,202.97,0.03]
[1756491168056,37.44363226,202.98,202.97,0.03]
[1756491168268,0.66,202.99,202.97,0.03]
[1756491168477,52.66363226,202.98,202.97,0.03]
[1756491169676,57.59022601,202.98,202.97,0.03]
[1756491169880,83.59022601,202.98,202.97,0.03]
[1756491171384,26.0,202.95,202.91,0.03]
[1756491171585,13.73775558,202.94,202.91,0.03]
[1756491171765,11.44363226,202.92,202.91,0.03]
[1756491171963,22.88726452,202.92,202.91,0.03]
[1756491172162,23.54726452,202.92,202.91,0.03]
[1756491172778,12.10363226,202.92,202.91,0.03]
[1756491173381,52.66363226,202.92,202.91,0.03]
[1756491173703,57.59168272,202.92,202.91,0.03]
[1756491174887,17.03168272,202.92,202.91,0.03]
[1756491175081,57.59168272,202.92,202.91,0.03]
[1756491175675,52.66363226,202.92,202.91,0.03]
[1756491176474,40.56,202.92,202.91,0.03]
[1756491176705,52.00363226,202.92,202.91,0.03]
[1756491178187,40.56,202.92,202.91,0.03]
[1756491179171,11.44363226,202.92,202.91,0.03]
[1756491179397,40.56,202.92,202.91,0.03]
[1756491180098,52.00363226,202.92,202.91,0.03]
[1756491180305,52.66363226,202.92,202.91,0.03]
[1756491180610,26.67,202.97,202.91,0.03]
[1756491180785,40.56,202.96,202.91,0.03]
[1756491180988,11.44363226,202.94,202.91,0.03]
[1756491181187,40.56,202.93,202.91,0.03]
[1756491182004,12.11363226,202.92,202.91,0.03]
[1756491183682,23.55726452,202.92,202.91,0.03]
[1756491184185,28.48531498,202.92,202.91,0.03]
[1756491185300,17.04168272,202.92,202.91,0.03]
[1756491185596,13.73775558,202.96,202.91,0.03]
[1756491185597,11.44363226,202.98,202.91,12.16363226]
[1756491185797,11.44363226,202.96,202.91,0.03]
[1756491185989,52.00363226,202.95,202.91,0.03]
[1756491186195,11.44363226,202.92,202.91,0.03]
[1756491186400,63.44726452,202.92,202.91,0.03]
[1756491186606,77.8550201,202.92,202.91,0.03]
[1756491187305,82.78307056,202.92,202.89,0.03]
[1756491187604,51.18138784,202.9,202.89,0.03]
[1756491187792,91.72138784,202.9,202.89,0.03]
[1756491187991,92.39138784,202.9,202.89,0.03]
[1756491188508,51.85138784,202.9,202.89,0.03]
[1756491188803,92.39138784,202.9,202.89,0.03]
[1756491189033,67.23,202.9,202.89,0.03]
[1756491189194,78.65363226,202.9,202.89,0.03]
[1756491189395,83.58216848,202.9,202.89,0.03]
[1756491190208,97.31992406,202.9,202.89,0.03]
[1756491191604,83.58216848,202.9,202.89,0.03]
[1756491192397,82.91216848,202.9,202.89,0.03]
[1756491192726,83.58216848,202.9,202.89,0.03]
[1756491193430,11.44363226,202.95,202.89,12.16363226]
[1756491193722,40.54,202.94,202.89,12.16363226]
[1756491193937,51.98363226,202.94,202.89,11.47363226]
[1756491194225,11.44363226,202.93,202.89,0.72]
[1756491194407,40.54,202.92,202.89,0.72]
[1756491195002,11.44363226,202.9,202.89,0.03]
[1756491195309,40.54,202.9,202.89,0.03]
[1756491196723,11.44363226,202.95,202.89,12.16363226]
[1756491196927,40.54,202.94,202.9,11.44363226]
[1756491197106,40.54,202.94,202.91,0.69]
[1756491197311,11.44363226,202.93,202.89,0.03]
[1756491197512,40.54,202.92,202.89,0.03]
[1756491198024,40.54,202.92,202.89,0.72]
[1756491198227,40.54,202.92,202.89,0.03]
[1756491198526,11.44363226,202.91,202.89,0.03]
[1756491198734,40.54,202.9,202.89,0.03]
[1756491199701,13.73775558,202.96,202.89,0.03]
[1756491199933,11.44363226,202.93,202.89,0.03]
[1756491200244,45.4675619,202.95,202.9,11.44363226]
[1756491200245,40.54,202.92,202.9,11.44363226]
[1756491200440,40.54,202.91,202.9,11.44363226]
[1756491200603,40.54,202.91,202.9,12.13363226]
[1756491200810,40.54,202.91,202.9,0.69]
[1756491201023,0.06,202.94,202.9,12.13363226]
[1756491201227,0.06,202.94,202.93,11.44363226]
[1756491201405,0.06,202.94,202.93,17.06143987]
[1756491202308,0.06,202.94,202.93,16.37143987]
[1756491202530,0.06,202.94,202.93,17.06143987]
[1756491204032,0.06,202.94,202.93,30.79919545]
[1756491204232,0.06,202.94,202.93,19.35556319]
[1756491204528,0.06,202.97,202.96,39.73775558]
[1756491204701,0.06,202.97,202.96,51.18138784]
[1756491205027,0.06,202.97,202.96,0.69]
[1756491205741,0.06,202.97,202.96,43.06071148]
[1756491206423,0.06,203.03,203.0,13.59559401]
[1756491206739,0.06,203.03,203.02,25.18138784]
[1756491207116,0.06,203.03,203.02,25.87138784]
[1756491207616,0.06,203.03,203.02,30.79701093]
[1756491208531,0.06,203.03,203.02,17.05925535]
[1756491208735,0.06,203.03,203.01,4.92583026]
[1756491208931,0.06,203.03,203.02,11.44363226]
[1756491209242,0.06,203.03,203.02,12.13363226]
[1756491209941,0.06,203.03,203.02,17.05925535]
[1756491210521,0.06,203.03,203.02,16.36925535]
[1756491210731,0.74,203.03,203.02,4.92562309]
[1756491210933,0.06,203.03,203.02,4.92562309]
[1756491211311,0.06,203.03,203.02,16.36925535]
[1756491212635,0.06,203.03,203.02,30.80701093]
[1756491213319,0.06,203.03,203.02,4.92562309]
[1756491213741,0.06,203.03,203.02,16.36925535]
[1756491213949,0.06,203.03,203.02,4.92562309]
[1756491214618,0.06,203.03,202.99,11.44363226]
[1756491214619,0.74,203.03,202.99,4.92635105]
[1756491214839,0.74,203.03,202.99,16.36998331]
[1756491215129,12.12363226,203.02,202.97,16.37025492]
[1756491215458,12.12363226,203.02,202.96,11.44363226]
[1756491215459,0.68,203.01,202.96,11.44363226]
[1756491215950,40.5,203.02,202.98,11.44363226]
[1756491216158,41.18,203.02,202.98,11.44363226]
[1756491216333,40.5,203.02,203.0,11.44363226]
[1756491216651,40.5,203.02,202.98,11.44363226]
[1756491217635,0.68,203.01,202.96,4.92707922]
[1756491217936,11.44363226,202.98,202.94,26.0]
[1756491218326,11.44363226,202.98,202.92,12.14363226]
[1756491218327,12.12363226,202.98,202.92,12.14363226]
[1756491218638,40.5,203.02,202.97,11.44363226]
[1756491218835,40.5,203.02,202.95,0.7]
[1756491218836,41.18,203.02,202.95,0.7]
[1756491219135,11.44363226,203.01,202.96,11.44363226]
[1756491219453,52.62363226,203.02,202.97,11.44363226]
[1756491219746,41.18,203.02,202.98,11.44363226]
[1756491220243,40.5,203.02,202.99,11.44363226]
[1756491220420,40.5,203.02,202.99,16.36980747]
[1756491220624,0.68,203.01,202.99,4.92617521]
[1756491221027,0.68,203.0,202.96,117.04363226]
[1756491221264,40.5,203.02,202.97,11.44363226]
[1756491221432,40.5,203.02,202.98,11.44363226]
[1756491221637,40.5,203.02,203.0,11.44363226]
[1756491223144,40.5,203.02,203.0,16.36955265]
[1756491223330,0.68,203.01,202.96,105.6]
[1756491223539,11.44363226,202.98,202.96,79.6]
[1756491223849,0.68,202.98,202.96,79.6]
[1756491224442,52.62363226,203.02,202.97,11.44363226]
[1756491224755,12.12363226,203.01,202.96,95.9706587]
[1756491225053,0.68,203.0,202.96,95.9706587]
[1756491225632,0.06,203.03,202.99,11.44363226]
[1756491225831,40.54,203.03,203.0,11.44363226]
[1756491226028,0.68,203.02,202.96,96.8447245]
[1756491226237,0.68,203.02,202.98,11.44363226]
[1756491226853,40.54,203.03,203.0,11.44363226]
[1756491227052,40.54,203.03,203.01,11.44363226]
[1756491227245,0.06,203.03,203.0,4.92610837]
[1756491227437,0.06,203.03,203.02,11.44363226]
[1756491227856,0.06,203.03,203.02,12.14363226]
[1756491228062,0.06,203.03,203.02,25.88138784]
[1756491229338,0.06,203.03,203.02,30.80701093]
[1756491232460,0.06,203.03,203.02,4.92562309]
[1756491232638,0.74,203.03,203.02,16.36925535]
[1756491232837,0.06,203.03,203.02,16.36925535]
[1756491234947,12.18363226,203.03,202.96,1.974675]
[1756491235266,11.44363226,203.01,203.0,0.03]
[1756491235435,12.12363226,203.02,203.0,0.03]
[1756491235760,0.68,203.01,203.0,0.03]
[1756491236778,12.12363226,203.01,203.0,0.03]
[1756491237075,5.60586572,203.01,203.0,0.03]
[1756491237373,17.04949798,203.01,203.0,0.03]
[1756491237870,5.60586572,203.01,203.0,0.03]
[1756491238067,17.04949798,203.01,203.0,0.03]
[1756491238554,12.12363226,203.01,203.0,0.03]
[1756491238865,0.68,203.01,203.0,0.03]
[1756491240767,12.12363226,203.01,203.0,0.03]
[1756491242073,0.68,203.01,203.0,0.03]
[1756491242482,0.06,203.03,203.02,26.0]
[1756491242761,0.06,203.03,203.02,25.84138784]
[1756491243179,0.06,203.03,203.02,12.10363226]
[1756491243352,0.06,203.03,203.01,26.0]
[1756491243554,0.06,203.03,203.02,11.44363226]
[1756491244145,0.06,203.03,203.02,16.36925535]
[1756491244371,0.06,203.03,203.02,17.02925535]
[1756491244760,0.06,203.03,203.02,16.36925535]
[1756491246179,12.22363226,203.03,203.0,0.03]
[1756491246366,11.44363226,203.01,203.0,0.03]
[1756491246881,12.16363226,203.01,203.0,0.03]
[1756491248952,17.08949798,203.01,203.0,0.03]
[1756491250394,17.08949798,203.01,202.97,0.03]
[1756491250395,26.0,202.98,202.97,0.03]
[1756491250701,91.62138784,202.98,202.97,0.03]
[1756491251000,92.34138784,202.98,202.97,0.03]
[1756491252409,97.26798159,202.98,202.97,0.03]
[1756491253082,99.24421759,202.98,202.97,0.03]
[1756491253901,85.50646201,202.98,202.97,0.03]
[1756491254105,83.53022601,202.98,202.97,0.03]
[1756491254689,26.72,202.98,202.97,0.03]
[1756491254889,78.60363226,202.98,202.97,0.03]
[1756491255068,83.53022601,202.98,202.97,0.03]
[1756491255778,78.60363226,202.98,202.97,0.03]
[1756491256185,83.53022601,202.98,202.97,0.03]
[1756491258001,72.08659375,202.98,202.97,0.03]
[1756491258293,83.53022601,202.98,202.97,0.03]
[1756491258501,97.26798159,202.98,202.97,0.03]
[1756491261894,39.59559401,202.95,202.94,0.03]
[1756491262078,91.60138784,202.95,202.94,0.03]
[1756491262402,92.32138784,202.95,202.94,0.03]
[1756491263112,97.24870984,202.95,202.94,0.03]
[1756491263402,112.04870984,202.95,202.94,0.03]
[1756491263607,97.24870984,202.95,202.92,0.03]
[1756491263900,37.44363226,202.93,202.92,0.03]
[1756491264383,38.16363226,202.93,202.92,0.03]
[1756491264786,77.86363226,202.93,202.92,0.03]
[1756491265186,83.51143987,202.93,202.92,0.03]
[1756491265587,87.48301816,202.93,202.92,0.03]
[1756491265784,83.51143987,202.93,202.92,0.03]
[1756491267313,82.79143987,202.93,202.92,0.03]
[1756491267521,83.51143987,202.93,202.92,0.03]
[1756491267892,82.79143987,202.93,202.92,0.03]
[1756491268705,83.51143987,202.93,202.92,0.03]
[1756491270207,71.34780761,202.93,202.92,0.03]
[1756491270418,82.79143987,202.93,202.92,0.03]
[1756491270712,40.42,202.93,202.92,0.69]
[1756491272310,40.42,202.93,202.92,0.03]
[1756491272311,56.79143987,202.93,202.92,0.03]
[1756491272817,71.19919545,202.93,202.92,0.03]
[1756491273484,82.79143987,202.93,202.92,0.03]
[1756491274009,42.37143987,202.93,202.92,0.03]
[1756491274184,82.79143987,202.93,202.92,0.03]
[1756491274793,4.92635105,202.99,202.92,0.73]
[1756491275001,40.42,202.98,202.92,0.73]
[1756491275207,11.44363226,202.95,202.92,0.73]
[1756491275399,40.42,202.94,202.92,0.73]
[1756491276416,11.44363226,202.93,202.92,0.03]
[1756491277489,11.44363226,202.93,202.89,0.03]
[1756491277693,13.73775558,202.89,202.88,1e-08]
[1756491277914,13.73775558,202.89,202.82,0.2]
[1756491277915,13.59559401,202.86,202.82,0.2]
[1756491278113,51.84363226,202.85,202.82,0.2]
[1756491278606,71.18113888,202.85,202.82,0.2]
[1756491280630,57.4433833,202.85,202.82,0.2]
[1756491280837,56.7733833,202.85,202.82,0.2]
[1756491281040,57.4433833,202.85,202.82,0.2]
[1756491281201,71.18113888,202.85,202.82,0.2]
[1756491281621,56.7733833,202.85,202.82,0.2]
[1756491281828,57.4433833,202.85,202.82,0.2]
[1756491285527,56.7733833,202.85,202.82,0.2]
[1756491286319,57.4433833,202.85,202.82,0.2]
[1756491287151,11.44363226,202.85,202.82,0.2]
[1756491287442,51.86363226,202.85,202.84,0.73]
[1756491288052,11.44363226,202.86,202.84,0.73]
[1756491288250,51.84363226,202.85,202.84,0.03]
[1756491288869,56.7733833,202.85,202.84,0.03]
[1756491290676,40.4,202.85,202.84,0.73]
[1756491290829,56.7733833,202.85,202.84,0.03]
[1756491291036,51.84363226,202.85,202.84,0.03]
[1756491291962,11.44363226,202.87,202.84,0.73]
[1756491292137,40.4,202.86,202.85,0.7]
[1756491293056,51.84363226,202.86,202.84,0.03]
[1756491293280,11.44363226,202.85,202.84,0.03]
[1756491293434,40.4,202.86,202.84,0.73]
[1756491294253,26.0,202.9,202.85,0.7]
[1756491294462,51.84363226,202.89,202.85,0.7]
[1756491294765,11.44363226,202.88,202.85,0.7]
[1756491294938,40.4,202.87,202.85,0.7]
[1756491295240,40.4,202.86,202.84,0.03]
[1756491295868,40.4,202.86,202.84,0.73]
[1756491296465,40.4,202.86,202.84,5.65998306]
[1756491298039,40.4,202.88,202.85,12.14363226]
[1756491298247,40.4,202.88,202.87,11.44363226]
[1756491298457,40.4,202.88,202.87,12.14363226]
[1756491298755,40.4,202.88,202.87,0.7]
[1756491299345,7.15502542,202.95,202.87,7.85502542]
[1756491299549,7.15502542,202.95,202.84,0.03]
[1756491299550,40.4,202.94,202.91,7.15502542]
[1756491299773,0.67,202.98,202.91,7.85502542]
[1756491299774,7.15502542,202.97,202.91,7.85502542]
[1756491299957,42.71502542,202.99,202.94,4.92756479]
[1756491300145,0.06,203.0,202.96,7.15502542]
[1756491300468,40.46,203.0,202.94,4.92756479]
[1756491300767,40.46,203.0,202.95,7.15502542]
[1756491300942,40.46,203.0,202.97,7.15502542]
[1756491301140,40.46,203.0,202.96,7.84502542]
[1756491301469,0.06,203.0,202.99,11.43057446]
[1756491301679,0.06,203.0,202.99,12.12057446]
[1756491302039,0.06,203.0,202.99,17.04692551]
[1756491302242,0.06,203.0,202.99,5.61635105]
[1756491302469,0.06,203.0,202.99,17.04692551]
[1756491303071,0.06,203.0,202.99,12.12057446]
[1756491303370,11.49057446,203.0,202.95,11.43057446]
[1756491303573,11.43057446,202.98,202.9,14.28559401]
[1756491303747,11.43057446,202.95,202.86,0.69]
[1756491303954,11.43057446,202.93,202.87,11.43057446]
[1756491304179,11.43057446,202.93,202.87,16.3598395]
[1756491304476,11.43057446,202.93,202.87,11.43057446]
[1756491304773,40.38,202.93,202.92,11.43057446]
[1756491305175,40.38,202.93,202.89,0.69]
[1756491305349,40.38,202.93,202.9,11.43057446]
[1756491305675,40.38,202.93,202.9,0.69]
[1756491306149,40.38,202.93,202.89,16.35926137]
[1756491306350,40.38,202.93,202.9,12.12057446]
[1756491306700,40.38,202.93,202.9,11.43057446]
[1756491306856,40.38,202.93,202.9,12.12057446]
[1756491307054,40.38,202.93,202.9,11.43057446]
[1756491307462,40.38,202.93,202.89,16.35926137]
[1756491308149,40.38,202.93,202.91,4.92829333]
[1756491308479,40.38,202.93,202.91,16.35886779]
[1756491308660,40.38,202.96,202.92,12.12057446]
[1756491308860,40.38,202.96,202.95,11.43057446]
[1756491310156,0.06,203.0,202.96,4.92707922]
[1756491310359,0.06,203.0,202.99,11.43057446]
[1756491310685,0.06,203.0,202.99,25.16833004]
[1756491310867,0.06,203.0,202.99,12.26273603]
[1756491311179,0.06,203.0,202.99,12.12057446]
[1756491312554,0.06,203.0,202.99,17.04692551]
[1756491313050,0.06,203.0,202.99,30.78468109]
[1756491313251,1e-08,203.0,202.99,30.78468109]
[1756491313871,1e-08,203.03,203.02,39.59559401]
[1756491314051,1e-08,203.03,203.02,62.94930523]
[1756491314252,1e-08,203.03,203.02,56.64179156]
[1756491314478,1e-08,203.03,203.02,56.78395313]
[1756491317585,0.03562955,203.05,203.03,13.73775558]
[1756491317794,0.03562955,203.05,203.04,11.43057446]
[1756491318482,0.06,203.06,203.05,26.14216157]
[1756491318693,0.06,203.06,203.05,30.78322538]
[1756491318907,40.36,203.12,203.07,51.16833004]
[1756491319068,0.06,203.13,203.08,13.73775558]
[1756491319268,0.06,203.13,203.12,11.43057446]
[1756491319661,0.06,203.13,203.09,0.69]
[1756491319866,0.06,203.13,203.12,11.43057446]
[1756491320705,0.06,203.13,203.12,16.35377256]
[1756491321689,0.06,203.13,203.1,4.92368291]
[1756491321980,0.75,203.13,203.11,11.43057446]
[1756491322894,0.69,203.12,203.11,4.93131937]
[1756491323081,0.06,203.13,203.11,11.43057446]
[1756491323282,0.06,203.13,203.12,11.43057446]
[1756491323789,0.75,203.13,203.1,16.35425737]
[1756491324090,0.06,203.13,203.11,11.43057446]
[1756491325097,0.06,203.13,203.09,11.43057446]
[1756491325273,0.69,203.12,203.09,4.87805907]
[1756491325467,0.69,203.11,203.08,4.92416781]
[1756491325674,0.69,203.1,203.07,26.0]
[1756491325892,11.43057446,203.08,203.04,2.003896]
[1756491326199,12.12057446,203.07,203.04,0.03]
[1756491326395,0.69,203.07,203.04,4.95511647]
[1756491326699,0.69,203.1,203.04,11.46057446]
[1756491326898,0.06,203.13,203.05,11.43057446]
[1756491326899,0.69,203.09,203.05,11.43057446]
[1756491327201,0.69,203.11,203.04,17.26792897]
[1756491327397,12.12057446,203.1,203.04,16.38565868]
[1756491327699,0.69,203.09,203.04,4.95508422]
[1756491327898,12.12057446,203.11,203.06,11.43057446]
[1756491328103,0.69,203.1,203.06,11.43057446]
[1756491328283,0.69,203.09,203.05,4.94880773]
[1756491328481,0.69,203.08,203.04,16.38565868]
[1756491329997,0.69,203.07,203.04,4.95508422]
[1756491330176,11.43057446,203.09,203.04,4.95508422]
[1756491330177,12.12057446,203.09,203.04,4.95508422]
[1756491330373,11.43057446,203.11,203.05,12.12057446]
[1756491330686,12.12057446,203.1,203.05,11.43057446]
[1756491330889,0.71,203.09,203.05,11.43057446]
[1756491331236,0.06,203.13,203.07,11.43057446]
[1756491331381,0.77,203.13,203.08,11.43057446]
[1756491331688,0.06,203.13,203.1,11.43057446]
[1756491332320,0.06,203.13,203.09,4.92392535]
[1756491332491,12.14057446,203.12,203.09,4.92392535]